Cogmind - Beta 16 --- EXPLORER MODE // 2025.12.04 @ 12:37:59 Player: K.K.Y. Result: Destroyed by Y-54 Guardian with Flak Gun Performance ------------- Evolutions (0) 0 Regions Visited (4) 800 Robots Destroyed (53) 265 Value Destroyed (1025) 1025 Prototype IDs (12) 240 Alien Tech Used (0) 0 Bonus (30) 30 TOTAL SCORE: 2360 Bonus ------- Follower Combat Kills 30 Cogmind --------- Core Integrity 0/250 Matter 280/300 Energy 249/250 System Corruption 0% Temperature Cool (72) Movement Walking (130) Location -7/Recycling Parts ------- > --- POWER (1) -------- Ion Engine > --- PROPULSION (2) --- Cargo Legs > --- UTILITY (3+2) ---- Large Storage Unit (+) Terrain Scan Processor Terrain Scan Processor Makeshift System Shield > --- WEAPON (2) ------- Barrage Gun Mining Laser > --- INVENTORY (15) --- Spiked Treads Humpback Improved Terrain Scanner Powered Armor Makeshift Hacking Suite Field Laser Flak Cannon Datajack Great Maul Peak State ------------ > --- POWER ------------ Ion Engine > --- PROPULSION ------- Cargo Legs > --- UTILITY ---------- Large Storage Unit Terrain Scan Processor Terrain Scan Processor Makeshift System Shield > --- WEAPON ----------- Barrage Gun Mining Laser > --- INVENTORY -------- Spiked Treads Humpback Improved Terrain Scanner Powered Armor Makeshift Hacking Suite Field Laser Flak Cannon Datajack [Rating: 32] Favorites ----------- Power Ion Engine Engine Ion Engine Propulsion Light Treads Treads Light Treads Leg Cargo Legs Utility Terrain Scan Processor Device Improved Terrain Scanner Storage Large Storage Unit Processor Terrain Scan Processor Hackware Makeshift System Shield Weapon Medium Laser Energy Gun Medium Laser Ballistic Gun Barrage Gun Ballistic Cannon Battle Cannon Special Weapon Mining Laser Build | -11 -10 -10 -10 -7 ------- Run | Yrd Mat Min Sub Rec Slots Evolved 1 | . 1 . . . Power . | . . . . . Propulsion . | . . . . . Utility 1 | . 1 . . . Weapon . | . . . . . Parts Attached 27 | 8 6 1 11 1 Power 3 | 1 1 . 1 . Engine 3 | 1 1 . 1 . Core . | . . . . . Reactor . | . . . . . Propulsion 6 | 2 2 . 2 . Treads 5 | 2 2 . 1 . Leg 1 | . . . 1 . Wheel . | . . . . . Hover . | . . . . . Flight . | . . . . . Utility 6 | 2 1 1 1 1 Device 2 | 2 . . . . Storage 1 | . . . 1 . Processor 2 | . 1 1 . . Hackware 1 | . . . . 1 Protection . | . . . . . Artifact . | . . . . . Weapon 12 | 3 2 . 7 . Energy Gun 5 | 2 2 . 1 . Energy Cannon . | . . . . . Ballistic Gun 2 | 1 . . 1 . Ballistic Cannon 3 | . . . 3 . Launcher . | . . . . . Special Weapon 2 | . . . 2 . Impact Weapon . | . . . . . Slashing Weapon . | . . . . . Piercing Weapon . | . . . . . Special Melee Weapon . | . . . . . Unidentified Prototypes . | . . . . . Parts Lost 7 | . . . 7 . Power 1 | . . . 1 . Propulsion 1 | . . . 1 . Utility 1 | . . . 1 . Weapon 4 | . . . 4 . Highest Loss Streak 4 | . . . 4 . To Critical Strikes . | . . . . . Average Backups 4 | 1 3 5 5 6 Power . | . . . . . Propulsion . | . 1 1 . 1 Utility 1 | . . 1 2 3 Weapon 1 | 1 1 2 1 1 Tool/Special . | . . . . . Unused Backups 9 | . . . 1 8 Power . | . . . . . Propulsion 2 | . . . 1 1 Utility 4 | . . . . 4 Weapon 2 | . . . . 2 Tool/Special 1 | . . . . 1 Average Slot Usage (%) 92 | . 89 100 92 79 Engine 11 | . 12 12 11 10 Treads 19 | . 25 25 17 . Leg 2 | . . . 2 10 Device 14 | . 25 15 11 . Storage 1 | . . . 2 10 Processor 19 | . 3 21 23 20 Energy Gun 11 | . 22 25 6 . Ballistic Cannon 5 | . . . 8 . Special Weapon 4 | . . . 6 10 Peak Build Rating 32 | 8 11 12 30 32 Average Rating 15 | 4 9 11 17 31 On Entrance 11 | . 8 11 12 27 Avg Prop Armor Cover (%) . | . . . . . Naked Turns . | . . . . . Heaviest Build 30 | 10 11 11 30 29 Greatest Support 55 | 40 40 40 55 55 Greatest Overweight (x) . | . . . . . Average Overweight (x) . | . . . . . Largest Inventory Capacity 15 | 5 5 5 15 15 Average Capacity 6 | 5 5 5 7 15 Most Carried 10 | 4 5 5 7 10 Average Carried 4 | 2 3 5 5 7 Final Capacity 15 | 5 5 5 15 15 Final Carried 10 | 3 5 5 6 10 Class Distribution -------------------- 55% | Scavenger-Mutant 36% | Hacker-Mutant 8% | Hacker-Skirmisher Dominant Class ---------------- Hacker-Mutant | -10/Materials Scavenger-Mutant | -10/Mines Scavenger-Mutant | -10/Subcaves Hacker-Mutant | -7/Recycling Resources | -11 -10 -10 -10 -7 ----------- Run | Yrd Mat Min Sub Rec Matter Collected 799 | 295 66 10 428 . Remotely . | . . . . . Salvage Created 1551 | 198 810 222 321 . Parts 90 | 15 45 13 17 . Haulers Intercepted 2 | . 2 . . . Recyclers Shooed 3 | . 3 . . . Parts Field Recycled . | . . . . . Retrieved Matter . | . . . . . Parts Self-Destructed . | . . . . . Prevented . | . . . . . Parts Restored . | . . . . . Kills | -11 -10 -10 -10 -7 ------- Run | Yrd Mat Min Sub Rec Combat Hostiles Destroyed 26 | . 9 4 13 . Guns 19 | . 9 4 6 . Cannons 7 | . . . 7 . Classes Destroyed 11 | 2 6 . 3 . Worker 2 | . 2 . . . Builder 5 | . 2 3 . . Tunneler 10 | 6 2 2 . . Hauler 2 | . 2 . . . Recycler 4 | 1 3 . . . Turret 2 | . . . 2 . Watcher 2 | . 2 . . . Swarmer 7 | . 4 2 1 . Grunt 8 | . 5 2 1 . Artisan 1 | . . . 1 . Subdweller 11 | . . . 11 . Best Kill Streak 5 | 3 5 2 3 . Combat Bots Only 2 | . 2 2 2 . Max Kills in Single Turn 2 | 1 2 1 1 . Gunslinging . | . . . . . Exploded . | . . . . . Melee . | . . . . . Uniques/NPCs Destroyed . | . . . . . Combat | -11 -10 -10 -10 -7 -------- Run | Yrd Mat Min Sub Rec Hostile Shots Fired 161 | . 25 15 103 18 Missed 47 | . 8 3 30 6 Hits 114 | . 17 12 73 12 Projectile 114 | . 17 12 73 12 AOE 2 | . . . 2 . Critical Strikes 1 | . . . 1 . Damage Taken 1291 | . 125 100 1023 43 Core 250 | . 14 13 211 12 Absorbed by Shields . | . . . . . Ignored by Resistances 771 | . 84 62 591 34 Core Remaining (%) 100 | 100 . . . . Volleys Fired 188 | 22 59 16 90 1 Largest 2 | 2 2 2 2 2 Hottest 133 | 80 100 100 133 128 Shots Fired 307 | 29 112 32 132 2 Gun 231 | 29 112 32 57 1 Cannon 54 | . . . 54 . Launcher . | . . . . . Special 22 | . . . 21 1 Kinetic 93 | 15 6 . 71 1 Thermal 200 | . 106 32 61 1 Explosive . | . . . . . Electromagnetic 14 | 14 . . . . Robot Hit Streak 40 | 17 23 13 40 7 Robot Miss Streak 2 | 1 2 1 2 . Penetration Max . | . . . . . Secondary Targets 3 | . 2 1 . . Max Gunslinging Chain 1 | . 1 1 . . Autonomous 10 | . . . 10 . Shots Hit Robots 239 | 27 93 24 93 2 Core Hits 92 | 12 34 12 33 1 Critical Kills . | . . . . . Critical Parts Destroyed . | . . . . . Critical Strikes 11 | 1 8 1 1 . Burn 10 | . 8 1 1 . Corrupt 1 | 1 . . . . Melee Attacks . | . . . . . Impact . | . . . . . Slashing . | . . . . . Piercing . | . . . . . Sneak Attacks . | . . . . . Combat Hostiles . | . . . . . Follow-up Attacks . | . . . . . Damage Inflicted 3195 | 282 1128 300 1440 45 Guns 2220 | 282 1128 299 490 21 Cannons 756 | . . . 756 . Explosions . | . . . . . Melee . | . . . . . Ramming 1 | . . 1 . . Kinetic 1153 | 105 55 . 972 21 Thermal 1864 | . 1073 299 468 24 Explosive . | . . . . . Electromagnetic 177 | 177 . . . . Impact . | . . . . . Slashing . | . . . . . Piercing . | . . . . . Highest Corruption . | . . . . . Average Corruption . | . . . . . Corruption Purged . | . . . . . Corruption Blocked . | . . . . . Overload Shots . | . . . . . Overflow Damage . | . . . . . Projectiles . | . . . . . Explosions . | . . . . . Melee . | . . . . . Knockbacks 12 | . . . 12 . Impact . | . . . . . Kinetic 12 | . . . 12 . Secondary . | . . . . . Self-Inflicted Damage . | . . . . . Shots . | . . . . . Rammed 1 | . . 1 . . Targets Rammed 1 | . . 1 . . Kicked . | . . . . . Crushed . | . . . . . Highest Temperature 382 | 72 382 297 315 54 Average Temperature 98 | 34 107 82 129 34 Received Heat Transfer 657 | . 111 87 435 24 Effects 8 | . 5 3 . . Shutdowns 1 | . 1 . . . Interference 6 | . 3 3 . . Damage (minor) 1 | . 1 . . . Siege Activations . | . . . . . Martial Activations . | . . . . . Shielding Activations . | . . . . . Robots Disrupted . | . . . . . Combat Hostiles . | . . . . . Robots Corrupted . | . . . . . Combat Hostiles . | . . . . . Parts Fried 2 | 2 . . . . Impact Corruptions . | . . . . . Robots Melted . | . . . . . Combat Hostiles . | . . . . . Parts Melted 9 | . 4 3 2 . Heat Transferred 6168 | . 3774 962 1382 50 Parts Sabotaged . | . . . . . Parts Stolen . | . . . . . Parts Stripped . | . . . . . Power Chain Reactions . | . . . . . Alert | -11 -10 -10 -10 -7 ------- Run | Yrd Mat Min Sub Rec Maximum Alert Level . | . . . . . Low Security (%) 100 | 100 100 100 . 100 Level 1 . | . . . . . Level 2 . | . . . . . Level 3 . | . . . . . Level 4 . | . . . . . Level 5 . | . . . . . High Security . | . . . . . Max Security . | . . . . . Peak Influence 50 | 10 48 50 . 5 Initial . | . . . . . Average 3 | 1 5 2 . . Influence Increases 616 | 35 311 125 140 5 Destroy 0b10 Robot/C 340 | . 180 80 80 . Destroy 0b10 Robot/NC 125 | 35 65 25 . . Destroy Leader 68 | . 48 20 . . Successful Hack 21 | . 16 . . 5 Destroy Structure 2 | . 2 . . . Lose Combat Pursuer 60 | . . . 60 . Influence Decreases 616 | 35 311 125 140 5 Time Decay 616 | 35 311 125 140 5 Squads Dispatched 1 | . 1 . . . Investigation 1 | . 1 . . . Extermination . | . . . . . Reinforcement . | . . . . . Assault . | . . . . . Garrison . | . . . . . Intercept . | . . . . . Searches Triggered . | . . . . . Construction Impeded . | . . . . . Haulers Reinforced . | . . . . . Active Scanning Responses . | . . . . . Cargo Convoy Interrupts . | . . . . . Stealth | -11 -10 -10 -10 -7 --------- Run | Yrd Mat Min Sub Rec Distress Signals 1 | . 1 . . . Communications Jammed . | . . . . . Distress Signals . | . . . . . Times Spotted 42 | . 16 4 21 1 Peak Tracking Total 3 | . 3 2 3 1 Tactical Retreats 2 | . . . 2 . Traps | -11 -10 -10 -10 -7 ------- Run | Yrd Mat Min Sub Rec Traps Triggered 1 | . . . 1 . Indirectly . | . . . . . Trap Hack Attempts . | . . . . . Triggered . | . . . . . Disarmed . | . . . . . Reprogrammed . | . . . . . Reused . | . . . . . Traps Extracted . | . . . . . Installed . | . . . . . Triggered . | . . . . . Machines | -11 -10 -10 -10 -7 ---------- Run | Yrd Mat Min Sub Rec Machines Disabled 2 | . . . 2 . Max in Single Turn 1 | . . . 1 . Machines Repaired . | . . . . . Machines Dismantled . | . . . . . Machines Sabotaged . | . . . . . Overloaded Fab Kills . | . . . . . Hacking | -11 -10 -10 -10 -7 --------- Run | Yrd Mat Min Sub Rec Machines Accessed 13 | . 8 . 2 3 Terminals 9 | . 6 . . 3 Fabricators . | . . . . . Repair Stations . | . . . . . Recycling Units 2 | . 2 . . . Scanalyzers . | . . . . . Garrison Access . | . . . . . Total Hacks 25 | . 12 . 5 8 Successful 20 | . 9 . 5 6 Failed 5 | . 3 . . 2 Catastrophic . | . . . . . Database Lockouts . | . . . . . Manual 10 | . 8 . . 2 Terminals 18 | . 10 . . 8 Fabricators . | . . . . . Repair Stations . | . . . . . Recycling Units 2 | . 2 . . . Scanalyzers . | . . . . . Garrison Access . | . . . . . Terminal Hacks 10 | . 1 . 5 4 Record 4 | . . . 4 . Part Schematic 2 | . . . . 2 Robot Analysis 2 | . 1 . . 1 Zone Layout 1 | . . . . 1 Proto ID Catalog 1 | . . . 1 . Fabricator Hacks . | . . . . . Repair Station Hacks . | . . . . . Recycling Unit Hacks 2 | . 2 . . . Retrieve Components 2 | . 2 . . . Scanalyzer . | . . . . . Garrison Access Hacks . | . . . . . Unauthorized Hacks 8 | . 6 . . 2 Terminals 8 | . 6 . . 2 Botnet 8 | . 6 . . 2 Fabricators . | . . . . . Repair Stations . | . . . . . Recycling Units . | . . . . . Scanalyzers . | . . . . . Garrison Access . | . . . . . Data Cores Recovered . | . . . . . Used . | . . . . . Hacking Detections 5 | . 4 . . 1 Full Trace Events 1 | . 1 . . . Feedback Events . | . . . . . Feedback Blocked . | . . . . . Robot Schematics Acquired . | . . . . . Robots Built . | . . . . . Authchips . | . . . . . Time . | . . . . . Total Robot Build Rating . | . . . . . Part Schematics Acquired 2 | . . . . 2 Parts Built . | . . . . . Authchips . | . . . . . Time . | . . . . . Total Part Build Rating . | . . . . . Part Studies Acquired . | . . . . . Parts Repaired . | . . . . . Time . | . . . . . Parts Recycled . | . . . . . Recycled Matter . | . . . . . Retrieved Matter . | . . . . . Retrieved Components 19 | . 19 . . . Parts Scanalyzed . | . . . . . Part Schematics Acquired . | . . . . . Parts Damaged . | . . . . . Bothacking | -11 -10 -10 -10 -7 ------------ Run | Yrd Mat Min Sub Rec Used RIF Installer . | . . . . . Robots Hacked . | . . . . . Non-combat . | . . . . . Combat . | . . . . . Robot Hacks Applied . | . . . . . Relay Couplers Released . | . . . . . Fabnet Peak Effective % . | . . . . . Robots Rewired . | . . . . . Allies Hacked . | . . . . . Hacks Repelled . | . . . . . Allies | -11 -10 -10 -10 -7 -------- Run | Yrd Mat Min Sub Rec Total Allies 3 | . . 3 . . Largest Group 3 | . . 3 3 . Highest-Rated Group 40 | . . 40 40 . Highest-Rated Ally 16 | . . 16 16 . Total Orders . | . . . . . Ally Attacks 28 | . . . 28 . Total Damage 99 | . . . 99 . Kills 1 | . . . 1 . Allies Corrupted . | . . . . . Allies Melted . | . . . . . Intel | -11 -10 -10 -10 -7 ------- Run | Yrd Mat Min Sub Rec Active Infowar (turns) 7512 | 186 1339 1141 4846 . Terrain 7314 | 12 1315 1141 4846 . Structural 1779 | 186 1339 254 . . Robot Analysis Total 2 | . 1 . . 1 Derelict Logs Recovered . | . . . . . Drone Launches . | . . . . . Drone Recoveries . | . . . . . Exploration | -11 -10 -10 -10 -7 ------------- Run | Yrd Mat Min Sub Rec Turns Passed 7804 | 248 1339 1141 4984 92 Spaces Moved 4169 | 115 694 641 2656 63 Core 6 | 6 . . . . Treads 3104 | 109 694 641 1660 . Legs 1059 | . . . 996 63 Wheels . | . . . . . Hover . | . . . . . Flight . | . . . . . Fastest Speed 50 | 50 160 160 130 130 Average Speed 152 | 154 160 160 148 130 Slowest Speed 160 | 160 160 160 160 130 Overloaded Moves . | . . . . . Propulsion Burnouts . | . . . . . Robots Hopped . | . . . . . Potential Cave-ins . | . . . . . Cave-ins Triggered . | . . . . . Exploration Rate (%) 59 | 5 85 99 96 10 Regions Visited 4 Branch Regions 3 Pre-discovered Areas 1 | . . . 1 . Known Exits Taken 4 | 1 1 1 1 . Unknown Exits Taken . | . . . . . Scrap Searched 15 | . . . 15 . Spaces Dug . | . . . . . Terrain Destroyed 1 | . . . 1 . Melee . | . . . . . Projectile 1 | . . . 1 . AOE . | . . . . . Terrain Rammed . | . . . . . Walls Destroyed . | . . . . . Machines Disabled . | . . . . . Actions | -11 -10 -10 -10 -7 --------- Run | Yrd Mat Min Sub Rec Total 5297 | 161 814 724 3528 70 Wait 858 | 6 39 65 748 . Move 4165 | 114 693 640 2655 63 Hop . | . . . . . Pick Up 33 | 9 10 . 9 5 Fast Attach 3 | . . 1 2 . Attach 20 | 8 3 . 8 1 Detach 6 | 2 1 . 3 . Swap 8 | . 3 . 5 . Drop 14 | . 6 1 7 . Fire 188 | 22 59 16 90 1 Melee . | . . . . . Ram . | . . . . . Kick . | . . . . . Crush 1 | . . 1 . . Escape Stasis . | . . . . . Rewire 1 | . . . 1 . Trap . | . . . . . Miscellaneous . | . . . . . Route ------- -11/Scrapyard -10/Materials (discovered 5 exits: *Mat x3 / *Min / *Sub) -10/Mines (discovered 4 exits: *Mat x2 / Exi / *Sub) -10/Subcaves (discovered 3 exits: *Mat x2 / *Rec) -7/Recycling History --------- Turn | Location | Event 18 | -11/Scrapyard | Identified exit to Materials 18 | -11/Scrapyard | Discovered exit to Materials (range 15) 249 | -11/Scrapyard | Entered Materials 249 | -10/Materials | Evolved 1 slot: Utility x1 315 | -10/Materials | Build established: Hacker-Mutant 338 | -10/Materials | Identified exit to Mines 338 | -10/Materials | Discovered exit to Mines (range 8) 541 | -10/Materials | Identified exit to Materials 541 | -10/Materials | Discovered exit to Materials (range 14) 646 | -10/Materials | Discovered exit to Materials (range 16) 1085 | -10/Materials | Discovered exit to Materials (range 10) 1094 | -10/Materials | Identified exit to Subcaves 1094 | -10/Materials | Discovered exit to Subcaves (range 4) 1503 | -10/Materials | Build established: Hacker-Skirmisher 1588 | -10/Materials | Entered Mines 1603 | -10/Mines | Identified exit to Exiles 1603 | -10/Mines | Discovered exit to Exiles (range 14) 1810 | -10/Mines | Received a Rocket Launcher from a helpful Derelict 1862 | -10/Mines | Assisted by bots powering up and referring to "LRC-V3" 1972 | -10/Mines | Discovered exit to Materials (range 9) 2050 | -10/Mines | Discovered exit to Subcaves (range 5) 2130 | -10/Mines | Build established: Scavenger-Mutant 2363 | -10/Mines | Deemed a non-threat by the Exiles lab entrance 2534 | -10/Mines | Discovered exit to Materials (range 3) 2729 | -10/Mines | Entered Subcaves 2729 | -10/Subcaves | Accompanied by 3 allies 2730 | -10/Subcaves | Approached by a straggling Scientist 3042 | -10/Subcaves | Lost 3 allies 3093 | -10/Subcaves | Visited Clippyterm 3098 | -10/Subcaves | Learned Factory fabricator intel 3098 | -10/Subcaves | Learned 40 Factory zone layouts 3254 | -10/Subcaves | Shifting Twisted Machinery released Sub. Shrapnel Launcher 3256 | -10/Subcaves | Shifting Twisted Machinery released Sub. Beam Cannon 3318 | -10/Subcaves | Shifting Twisted Machinery released Flamer 3349 | -10/Subcaves | Identified exit to Recycling 3349 | -10/Subcaves | Discovered exit to Recycling (range 15) 3426 | -10/Subcaves | Shifting Twisted Machinery released Sub. Power Source 3994 | -10/Subcaves | Identified exit to Materials 3994 | -10/Subcaves | Discovered exit to Materials (range 10) 4659 | -10/Subcaves | Learned location of Zion (-6) 4659 | -10/Subcaves | Met a Zionite searching for "candidates" 4677 | -10/Subcaves | A swath of the cavern ceiling suddenly collapsed 6068 | -10/Subcaves | Shifting Twisted Machinery released Sub. Beam Cannon 6089 | -10/Subcaves | Shifting Twisted Machinery released Sub. Machine Gun 6146 | -10/Subcaves | Core integrity fell below 50% 6196 | -10/Subcaves | Lost 4 parts (1n3w) 6214 | -10/Subcaves | Discovered exit to Materials (range 13) 6264 | -10/Subcaves | Visited 4L-MR0's lab 6286 | -10/Subcaves | Found Cargo Legs 6287 | -10/Subcaves | Attached Cargo Legs, gained temporary slots: Utility x2 6389 | -10/Subcaves | Disturbed a concealed Subdweller 6441 | -10/Subcaves | Build established: Hacker-Mutant 6499 | -10/Subcaves | A swath of the cavern ceiling suddenly collapsed 7584 | -10/Subcaves | Core integrity fell below 20% 7713 | -10/Subcaves | Entered Recycling 7758 | -7/Recycling | Found Powered Armor 7805 | -7/Recycling | Destroyed by Y-54 Guardian with Flak Gun Last Messages --------------- Retrieving Zone 4E layout... Downloaded map data. 07734_ Acquired Imp. Terrain Scanner. 07740_ Acquired Field Laser. 07753_ Acquired Flak Cannon. 07758_ Acquired Powered Armor. 07781_ Acquired Great Maul. 07784_ Connecting with Terminal... >>Trojan(Botnet) Trojan loaded successfully. Testing... Terminal linked with 0 systems. Awaiting botnet instructions. 07794_ Connecting with Terminal... >>Trojan(Botnet) Trojan loaded successfully. Testing... Terminal linked with 1 system. Awaiting botnet instructions. 07802_ Y-54 Guardian springs to life. Map ----- +----------------------------------------------------+ | ?## # [! #???????????????????????? | | ??# ######+####???????????????????????? | | ??# #????# ############???????????????? | | ?## ##???# ????????????? | | ?# ##### ####???????????????????? | | ?# #??????????????????????? | | ?# #??????????????????????? | | ?# #??????????????????????? | | ?# ####### #??????????????????????? | | ?#######???# % #??????????????????????? | | ???????????# #??????????????????????? | | ???????????# = #??????????????????????? | | ???????????### #??????????????????????? | | ????????????#T +??????????????????????? | | ????????????## #??????????????????????? | | ?????????????# #??????????????????????? | | ?????????????# #??????????????????????? | | ????????????## ##?????????????????????? | | ????????????# rr #?????????????????????? | | ????????????# #?????????????????????? | | ????????????# T #?????????????????????? | | ????????????# #?????????????????????? | | ????????????# #?????????????????????? | | ????????????## ##?????????????????????? | | ?????????????# #??????????????????????? | | ?????????????# @#??????????????????????? | | ?????????????# Y#?????????????????????? | | ?????????????# ##?????????????????????? | | ?????????????+ #??????????????????????? | | ?????????????# #??????????????????????? | | ?????????????# #??????????????????????? | | ?????????????# #??????????????????????? | | ?????????????# #??????????????????????? | | ?????????????# #??????????????????????? | | ?????????????# ???????????????????????? | | ?????????????# ???????????????????????? | | ?????????????# ???????????????????????? | | ?????????????# ???????????????????????? | | ?????????????# ???????????????????????? | | ????????????? ???????????????????????? | | ?????????????? ???????????????????????? | | ????????????????????????????????????????? | | ????????????????????????????????????????? | | ????????????????????????????????????????? | | ????????????????????????????????????????? | | ????????????????????????????????????????? | | ????????????????????????????????????????? | | ????????????????????????????????????????? | | ????????????????????????????????????????? | | ????????????????????????????????????????? | +----------------------------------------------------+ Best States ------------- Heat Dissipation 25 Energy Generation 10 Energy Capacity 250 Matter Stores 300 Matter Capacity 300 Sight Range 16 Terrain Scan Range 16 Terrain Scan Density 160 Resistance: KI 35 Resistance: TH 35 Resistance: EX 35 Resistance: EM 35 Resistance: I 35 Resistance: S 35 Resistance: P 35 Evasion (%) 55 Recoil Reduction 2 Offensive Hacking 20 Defensive Hacking 11 Item Schematics ----------------- Power Sword | -7/Recycling | Hacked Field Propulsion Drive | -7/Recycling | Hacked Robot Schematics ------------------ None Fabricated ------------ Nothing Repaired ---------- Nothing Studied --------- None Alien Tech Used ----------------- None Achievements -------------- None Challenges ------------ None Game ------ Seed ShockAmuletArticulator Manual? 0 Play Time 00:29:11 Cumulative 167.1 hours Start 2025.12.04 @ 12:09:05 End 2025.12.04 @ 12:37:59 Sessions 1 Manual Loads 0 Difficulty Explorer Special Mode None Game No. 225 Rogue 0 Adventurer 0 Explorer 225 Win Type - Total 0 Types 0/0/0/0/0/0/0/0/0/0 Lore% 70 Gallery% 67 Achievement% 52 Wizard Run 0 Options --------- Layout 1 ASCII 0 Keyboard 0 Movement Mouse Keybinds 0 Fullscreen 1 Font 24/Smallcaps Map View 50x35 Zoom Use 0% Tactical HUD 1 Map Filters NONE Filters NONE Steam 1 RUN: 7a4fa778-36ff-49a0-ba79-7d91b31f9273